bitfinex/quotes_SOLUSD_20241226
["timestamp","ask_amount","ask_price","bid_price","bid_amount"]
[1735193161800,15.84188355,195.02,194.94,15.84188355]
[1735193163203,15.84188355,195.03,194.94,15.84188355]
[1735193163386,15.84188355,195.03,194.95,15.84188355]
[1735193164104,15.84188355,195.01,194.93,15.96737355]
[1735193167121,15.84188355,195.03,194.95,15.96737355]
[1735193167413,1.6131,195.16,195.0,42.28017355]
[1735193167592,15.84188355,195.08,195.0,42.28017355]
[1735193167998,19.0178,195.14,195.02,15.84188355]
[1735193168202,15.84188355,195.11,195.04,15.84188355]
[1735193168384,15.84188355,195.09,195.02,15.84188355]
[1735193168791,15.84188355,195.08,195.01,17.41888355]
[1735193168997,15.84188355,195.09,195.02,15.84188355]
[1735193169198,15.84188355,195.08,195.01,17.41888355]
[1735193169391,15.84188355,195.05,194.96,1.577]
[1735193169592,15.84188355,195.04,194.96,17.41888355]
[1735193170010,15.84188355,195.03,194.96,17.41888355]
[1735193172546,15.84188355,195.01,194.96,1.577]
[1735193173719,15.84188355,195.0,194.96,1.577]
[1735193174383,15.84188355,194.99,194.96,1.577]
[1735193174629,15.84188355,194.97,194.91,1.5355]
[1735193174813,15.84188355,194.94,194.91,1.5355]
[1735193175011,15.84188355,194.93,194.91,1.5355]
[1735193175211,15.84188355,194.92,194.84,15.84188355]
[1735193175420,15.84188355,194.91,194.85,1.5355]
[1735193175634,15.84188355,194.89,194.85,1.5355]
[1735193175811,15.84188355,194.88,194.85,1.5355]
[1735193176208,15.84188355,194.87,194.85,1.5355]
[1735193176410,15.84188355,194.86,194.81,1.5355]
[1735193176630,15.84188355,194.9,194.81,1.5355]
[1735193176631,15.84188355,194.83,194.81,1.5355]
[1735193176822,15.84188355,194.83,194.76,1.5355]
[1735193177128,15.84188355,194.85,194.77,0.12549]
[1735193177326,15.84188355,194.88,194.81,15.84188355]
[1735193177719,15.84188355,194.87,194.8,15.84188355]
[1735193178326,15.84188355,194.88,194.81,15.84188355]
[1735193178942,15.84188355,194.87,194.8,0.12549]
[1735193179240,15.84188355,194.87,194.8,15.96737355]
[1735193179423,25.6432,194.99,194.71,15.84188355]
[1735193179424,15.47,194.92,194.71,15.84188355]
[1735193179741,15.84188355,194.82,194.75,15.84188355]
[1735193180326,15.84188355,194.82,194.76,0.12549]
[1735193182045,15.84188355,194.82,194.75,15.84188355]
[1735193182240,15.84188355,194.81,194.73,15.84188355]
[1735193182433,15.84188355,194.81,194.76,20.0]
[1735193182932,15.84188355,194.79,194.72,15.84188355]
[1735193183153,15.84188355,194.78,194.71,15.84188355]
[1735193183331,15.84188355,194.77,194.7,15.84188355]
[1735193183723,16.06756125,194.88,194.74,15.84188355]
[1735193183923,15.84188355,194.81,194.75,0.12549]
[1735193184229,15.84188355,194.79,194.75,0.12549]
[1735193184532,20.0,194.85,194.7,0.77026057]
[1735193184533,15.84188355,194.78,194.71,23.776884]
[1735193184731,15.84188355,194.78,194.72,0.12549]
[1735193191157,15.84188355,194.78,194.71,23.776884]
[1735193191360,15.84188355,194.76,194.69,30.92]
[1735193191548,15.84188355,194.76,194.71,0.12549]
[1735193191756,15.84188355,194.78,194.71,0.12549]
[1735193192064,20.54222,194.89,194.76,6.68519]
[1735193192233,15.84188355,194.86,194.78,15.96737355]
[1735193192667,15.84188355,194.85,194.78,15.96737355]
[1735193193550,15.84188355,194.84,194.76,53.32158355]
[1735193193741,15.84188355,194.83,194.77,23.776884]
[1735193193942,15.84188355,194.83,194.78,0.12549]
[1735193194446,15.84188355,194.82,194.76,6.5597]
[1735193194836,15.84188355,194.81,194.76,6.5597]
[1735193195258,15.84188355,194.82,194.76,6.5597]
[1735193197681,15.84188355,194.81,194.76,6.5597]
[1735193200077,15.84188355,194.84,194.77,0.12549]
[1735193200662,15.84188355,194.84,194.77,15.96737355]
[1735193201177,15.84188355,194.83,194.77,0.12549]
[1735193202971,15.84188355,194.83,194.76,22.40158355]
[1735193203273,15.84188355,194.82,194.76,6.5597]
[1735193203651,15.84188355,194.82,194.74,15.84188355]
[1735193203652,15.84188355,194.79,194.72,17.49958355]
[1735193203962,15.84188355,194.77,194.72,1.6577]
[1735193204654,15.84188355,194.74,194.67,1.5672]
[1735193204852,15.84188355,194.74,194.68,0.12549]
[1735193205045,15.84188355,194.73,194.68,0.12549]
[1735193205267,15.84188355,194.72,194.67,1.5672]
[1735193205564,15.84188355,194.69,194.67,1.5672]
[1735193205771,15.84188355,194.68,194.62,1.5672]
[1735193206743,15.84188355,194.67,194.62,1.5672]
[1735193206942,15.84188355,194.66,194.62,1.5672]
[1735193207253,15.84188355,194.68,194.62,1.5672]
[1735193207643,15.84188355,194.66,194.62,1.5672]
[1735193207948,15.84188355,194.68,194.62,1.5672]
[1735193208141,15.84188355,194.69,194.62,1.5672]
[1735193208685,15.84188355,194.71,194.63,15.96737355]
[1735193209185,15.84188355,194.71,194.65,0.12549]
[1735193211977,15.84188355,194.71,194.64,0.12549]
[1735193212473,15.84188355,194.74,194.67,0.12549]
[1735193215775,15.84188355,194.73,194.67,0.12549]
[1735193216274,15.84188355,194.72,194.66,0.12549]
[1735193217571,15.84188355,194.72,194.66,31.04549]
[1735193219777,15.84188355,194.74,194.66,31.04549]
[1735193220076,15.84188355,194.76,194.7,0.12549]
[1735193220264,15.84188355,194.78,194.72,0.12549]
[1735193221288,15.84188355,194.77,194.72,0.12549]
[1735193223197,15.84188355,194.78,194.72,0.12549]
[1735193223495,15.84188355,194.77,194.72,0.12549]
[1735193224296,15.84188355,194.76,194.71,1.5628]
[1735193224666,15.84188355,194.76,194.71,21.5628]
[1735193229672,15.84188355,194.76,194.72,0.12549]
[1735193232280,10.13613161,194.77,194.72,0.12549]
[1735193234418,10.13613161,194.77,194.72,20.12549]
[1735193234690,10.13613161,194.79,194.72,20.12549]
[1735193236598,10.13613161,194.77,194.72,20.12549]
[1735193237372,10.13613161,194.78,194.72,20.12549]
[1735193237573,10.13613161,194.79,194.72,20.12549]
[1735193238193,10.13613161,194.78,194.74,0.12549]
[1735193238381,10.13613161,194.77,194.72,20.0]
[1735193239090,10.13613161,194.78,194.73,0.12549]
[1735193239284,10.13613161,194.79,194.73,0.12549]
[1735193241993,10.13613161,194.78,194.73,0.12549]
[1735193242209,10.13613161,194.76,194.71,1.5628]
[1735193242375,10.13613161,194.74,194.71,1.5628]
[1735193242574,10.13613161,194.72,194.66,1.5675]
[1735193242973,10.13613161,194.69,194.66,1.5675]
[1735193243291,10.13613161,194.68,194.61,1.5675]
[1735193243592,10.13613161,194.64,194.61,1.5675]
[1735193243995,10.13613161,194.65,194.61,1.5675]
[1735193244178,15.85745177,194.65,194.61,1.5675]
[1735193244501,15.85745177,194.64,194.57,15.85745177]
[1735193244682,15.85745177,194.64,194.56,17.42495177]
[1735193245090,15.85745177,194.64,194.58,20.0]
[1735193245602,15.85745177,194.64,194.57,15.98294177]
[1735193245804,15.85745177,194.64,194.57,0.12549]
[1735193246097,7.94745357,194.73,194.59,15.98294177]
[1735193246304,15.85745177,194.68,194.61,15.98294177]
[1735193246903,15.85745177,194.67,194.61,20.12549]
[1735193247288,15.85745177,194.69,194.61,35.98294177]
[1735193247805,15.85745177,194.68,194.61,20.12549]
[1735193247977,15.85745177,194.66,194.61,20.12549]
[1735193248181,15.85745177,194.66,194.59,15.85745177]
[1735193248398,15.85745177,194.65,194.57,15.85745177]
[1735193249204,15.85745177,194.65,194.58,0.12549]
[1735193251303,15.85745177,194.67,194.6,0.12549]
[1735193251503,15.85745177,194.69,194.61,15.85745177]
[1735193254908,15.85745177,194.67,194.62,20.0]
[1735193255520,15.85745177,194.67,194.59,15.98294177]
[1735193256413,15.85745177,194.69,194.63,0.12549]
[1735193256784,15.85745177,194.71,194.64,1.5627]
[1735193257091,15.85745177,194.71,194.65,0.12549]
[1735193260923,12.8343,194.79,194.67,0.12549]
[1735193260924,15.85745177,194.73,194.67,0.12549]
[1735193261792,15.85745177,194.72,194.66,20.12549]
[1735193261998,15.85745177,194.72,194.66,0.12549]
[1735193262227,15.85745177,194.73,194.66,0.12549]
[1735193263330,15.85745177,194.73,194.65,15.85745177]
[1735193263512,15.85745177,194.72,194.65,15.85745177]
[1735193263714,15.85745177,194.72,194.65,0.12549]
[1735193264423,15.85745177,194.73,194.65,15.98294177]
[1735193265405,15.85745177,194.73,194.66,20.0]
[1735193265811,15.85745177,194.73,194.65,0.12549]
[1735193266205,10.14137127,194.72,194.65,0.12549]
[1735193268241,12.8343,194.79,194.65,23.902374]
[1735193268446,10.14137127,194.74,194.67,0.12549]
[1735193270443,10.14137127,194.74,194.67,10.26686127]
[1735193271547,10.14137127,194.74,194.67,0.12549]
[1735193272047,20.0,194.77,194.67,0.12549]
[1735193272048,10.14137127,194.73,194.67,0.12549]
[1735193275754,10.14137127,194.73,194.66,10.14137127]
[1735193276063,10.14137127,194.73,194.66,20.0]
[1735193276360,10.14137127,194.73,194.64,11.70407127]
[1735193276762,10.14137127,194.73,194.65,0.12549]
[1735193277125,10.14137127,194.71,194.65,0.12549]
[1735193277619,10.14137127,194.71,194.64,11.70407127]
[1735193277826,10.14137127,194.71,194.64,1.5627]
[1735193278126,10.14137127,194.69,194.64,1.5627]
[1735193279842,10.14137127,194.68,194.64,1.5627]
[1735193280746,10.14137127,194.7,194.64,1.5627]
[1735193281550,10.14137127,194.71,194.64,1.5627]
[1735193287250,10.14137127,194.68,194.64,1.5627]
[1735193293962,10.14137127,194.69,194.64,1.5627]
[1735193302684,10.14137127,194.67,194.58,7.9173]
[1735193302849,10.14137127,194.65,194.58,18.05867127]
[1735193303757,10.14137127,194.64,194.58,7.9173]
[1735193305667,10.14137127,194.65,194.58,7.9173]
[1735193305877,10.14137127,194.66,194.58,7.9173]
[1735193306082,10.14137127,194.66,194.58,18.05867127]
[1735193307386,30.14137127,194.68,194.6,10.14137127]
[1735193307858,30.14137127,194.68,194.61,10.14137127]
[1735193308488,30.14137127,194.68,194.6,10.14137127]
[1735193309073,10.14137127,194.68,194.6,10.14137127]
[1735193309982,10.14137127,194.68,194.61,10.14137127]
[1735193310177,10.14137127,194.69,194.61,10.14137127]
[1735193310380,7.94745357,194.72,194.61,10.14137127]
[1735193310575,10.14137127,194.69,194.61,10.14137127]
[1735193313082,10.14137127,194.67,194.58,7.9173]
[1735193313392,10.14137127,194.67,194.58,18.05867127]
[1735193313562,10.14137127,194.67,194.59,0.12549]
[1735193314686,10.14137127,194.67,194.61,0.12549]
[1735193314994,10.14137127,194.69,194.61,0.12549]
[1735193318091,10.14137127,194.69,194.62,10.14137127]
[1735193318393,10.14137127,194.71,194.64,1.6051]
[1735193319369,10.14137127,194.72,194.65,0.12549]
[1735193319567,10.14137127,194.72,194.66,6.2274]
[1735193323191,10.14137127,194.71,194.66,6.2274]
[1735193329117,10.14137127,194.71,194.64,1.6051]
[1735193330202,10.14137127,194.69,194.64,1.6051]
[1735193330381,10.14137127,194.67,194.64,1.6051]
[1735193332511,10.14137127,194.67,194.58,10.14137127]
[1735193332512,10.14137127,194.65,194.58,1.5372]
[1735193332713,10.14137127,194.64,194.58,1.5372]
[1735193338883,20.0,194.67,194.59,30.98549]
[1735193339201,10.14137127,194.68,194.62,0.12549]
[1735193339401,7.94745357,194.68,194.62,16.42646127]
[1735193339606,7.94745357,194.68,194.65,1.5141]
[1735193340409,10.14137127,194.71,194.65,1.5141]
[1735193342416,10.14137127,194.67,194.65,1.5141]
[1735193342918,10.14137127,194.68,194.65,1.5141]
[1735193343103,10.14137127,194.69,194.65,1.5141]
[1735193343309,10.14137127,194.71,194.65,1.5141]
[1735193344616,10.14137127,194.72,194.65,1.5141]
[1735193345195,10.14137127,194.72,194.66,0.12549]
[1735193346603,10.14137127,194.71,194.66,0.12549]
[1735193347029,10.14137127,194.68,194.65,1.5141]
[1735193347206,10.14137127,194.67,194.65,1.5141]
[1735193347529,35.8863925,194.73,194.63,0.12549]
[1735193347691,10.14137127,194.68,194.63,0.12549]
[1735193349618,10.14137127,194.67,194.63,0.12549]
[1735193350297,10.14137127,194.68,194.63,0.12549]
[1735193352819,10.14137127,194.69,194.63,0.12549]
[1735193353035,43.83384607,194.73,194.63,34.04374527]
[1735193353240,53.97521734,194.73,194.66,0.12549]
[1735193353411,46.02776377,194.73,194.66,0.12549]
[1735193354735,35.8863925,194.73,194.66,0.12549]
[1735193354920,10.14137127,194.72,194.65,23.902374]
[1735193355327,10.14137127,194.72,194.65,34.04374527]
[1735193356211,10.14137127,194.7,194.62,6.1596]
[1735193356708,10.14137127,194.71,194.63,23.11166127]
[1735193356923,10.14137127,194.71,194.63,23.88207034]
[1735193357731,10.14137127,194.71,194.65,0.12549]
[1735193358536,10.14137127,194.72,194.65,0.12549]
[1735193358829,10.14137127,194.71,194.65,0.12549]
[1735193360322,10.14137127,194.72,194.65,0.12549]
[1735193362239,18.08882484,194.76,194.69,0.12549]
[1735193362533,7.94745357,194.76,194.73,0.12549]
[1735193362708,7.94745357,194.76,194.75,20.12549]
[1735193362915,7.94745357,194.76,194.75,34.04374527]
[1735193363115,7.94745357,194.78,194.77,0.12549]
[1735193363338,7.94745357,194.78,194.77,10.26686127]
[1735193364018,10.14137127,194.86,194.77,40.53254527]
[1735193364222,10.14137127,194.86,194.79,0.12549]
[1735193364560,10.14137127,194.85,194.79,0.12549]
[1735193371947,1.5025,194.91,194.79,10.26686127]
[1735193372247,10.14137127,194.9,194.83,0.12549]
[1735193373324,10.14137127,194.9,194.83,34.04374527]
[1735193373532,10.14137127,194.91,194.83,34.81339047]
[1735193377085,10.14137127,194.91,194.83,34.68790047]
[1735193377634,10.14137127,194.9,194.84,0.12549]
[1735193377834,51.6635978,194.97,194.84,0.12549]
[1735193377835,10.14137127,194.91,194.84,0.12549]
[1735193378140,10.14137127,194.89,194.82,1.5739]
[1735193378332,10.14137127,194.88,194.82,1.5739]
[1735193379759,10.14137127,194.88,194.83,0.12549]
[1735193379959,12.8244,194.95,194.83,0.12549]
[1735193379960,10.14137127,194.89,194.83,0.12549]
[1735193383558,12.8244,194.95,194.83,0.12549]
[1735193383764,10.14137127,194.9,194.83,23.902374]
[1735193383967,10.14137127,194.9,194.83,34.04374527]
[1735193385551,10.14137127,194.91,194.83,34.04374527]
[1735193386180,51.6635978,194.97,194.87,0.12549]
[1735193386379,10.14137127,194.93,194.87,23.902374]
[1735193386561,10.14137127,194.94,194.87,23.902374]
[1735193387054,6.4542,195.03,194.92,0.12549]
[1735193387259,10.14137127,194.98,194.92,0.12549]
[1735193389881,10.14137127,194.96,194.9,1.5162]
[1735193390181,10.14137127,194.96,194.92,20.0]
[1735193390383,10.14137127,194.94,194.9,1.5162]
[1735193390672,10.14137127,194.93,194.9,1.5162]
[1735193391780,10.14137127,194.92,194.85,1.5162]
[1735193391980,10.14137127,194.91,194.85,1.5162]
[1735193392193,10.14137127,194.9,194.85,1.5162]
[1735193392554,10.14137127,194.91,194.85,1.5162]
[1735193392963,10.14137127,194.92,194.86,0.12549]
[1735193393279,10.14137127,194.93,194.86,10.26686127]
[1735193394677,10.14137127,194.94,194.88,0.12549]
[1735193395385,1.5848,194.99,194.88,0.12549]
[1735193395679,10.14137127,194.94,194.88,0.12549]
[1735193395900,10.14137127,194.93,194.87,0.12549]
[1735193396876,1.5848,194.99,194.87,0.12549]
[1735193397085,10.14137127,194.94,194.87,41.12686127]
[1735193399011,6.4542,195.0,194.89,0.12549]
[1735193399162,10.14137127,194.96,194.89,10.26686127]
[1735193400358,48.64986715,195.03,194.91,0.12549]
[1735193400359,10.14137127,194.97,194.91,0.12549]
[1735193400593,10.14137127,194.96,194.91,0.12549]
[1735193401099,10.14137127,194.94,194.86,0.7694158]
[1735193401270,10.14137127,194.93,194.89,20.0]
[1735193401468,10.14137127,194.92,194.85,1.5162]
[1735193401662,10.14137127,194.91,194.88,20.0]
[1735193402066,10.14137127,194.92,194.85,11.65757127]
[1735193402295,10.14137127,194.92,194.88,20.0]
[1735193405374,10.14137127,194.92,194.86,0.12549]
[1735193405581,10.14137127,194.89,194.85,1.5162]
[1735193406281,10.14137127,194.9,194.85,1.5162]
[1735193406906,10.14137127,194.89,194.85,1.5162]
[1735193409289,10.14137127,194.9,194.85,1.5162]
[1735193409496,6.5468,194.96,194.86,0.12549]
[1735193409801,10.14137127,194.92,194.86,0.12549]
[1735193409989,10.14137127,194.91,194.86,20.0]
[1735193410188,10.14137127,194.89,194.85,1.5162]
[1735193411815,10.14137127,194.87,194.82,20.0]
[1735193413783,10.14137127,194.88,194.82,20.0]
[1735193414121,10.14137127,194.92,194.86,0.12549]
[1735193414276,10.14137127,194.93,194.86,23.902374]
[1735193414477,10.14137127,194.94,194.86,64.90374527]
[1735193414702,10.14137127,194.94,194.88,0.12549]
[1735193415002,19.1065,195.01,194.88,16.28976127]
[1735193415312,10.14137127,194.97,194.9,0.12549]
[1735193415480,1.6269,195.02,194.92,20.0]
[1735193415682,10.14137127,194.97,194.92,20.0]
[1735193416575,10.14137127,194.97,194.9,10.26686127]
[1735193417201,10.14137127,194.95,194.91,20.0]
[1735193418903,10.14137127,194.96,194.91,20.0]
[1735193419082,10.14137127,194.95,194.91,20.0]
[1735193419676,9.84137127,194.95,194.91,20.0]
[1735193420093,9.84137127,194.95,194.89,0.12549]
[1735193422102,10.14137127,194.96,194.89,0.12549]
[1735193422303,1.6269,195.02,194.89,0.12549]
[1735193422521,10.14137127,194.96,194.89,23.902374]
[1735193423289,10.14137127,194.95,194.89,23.902374]
[1735193424117,10.14137127,194.96,194.89,23.902374]
[1735193424298,10.14137127,194.96,194.89,34.04374527]
[1735193424787,10.14137127,194.97,194.91,0.12549]
[1735193425414,10.14137127,194.96,194.9,0.12549]
[1735193427740,10.14137127,194.97,194.9,10.26686127]
[1735193429731,1.6269,195.02,194.93,20.0]
[1735193429935,10.14137127,194.97,194.94,0.12549]
[1735193433231,10.14137127,194.97,194.91,0.12549]
[1735193433745,10.14137127,194.92,194.88,6.0229]
[1735193433924,10.14137127,194.93,194.88,6.0229]
[1735193434243,10.14137127,194.96,194.89,10.26686127]
[1735193434534,10.14137127,194.97,194.9,10.14137127]
[1735193434739,10.14137127,194.97,194.91,10.26686127]
[1735193435245,10.14137127,194.96,194.91,23.776884]
[1735193435636,10.14137127,194.96,194.93,0.12549]
[1735193436142,10.14137127,194.97,194.91,0.12549]
[1735193436856,10.14137127,194.96,194.91,0.12549]
[1735193439945,10.14137127,194.98,194.91,10.26686127]
[1735193440122,10.14137127,194.97,194.91,0.12549]
[1735193440543,35.83136715,195.03,194.91,0.12549]
[1735193440751,35.83136715,195.03,194.93,0.12549]
[1735193441049,10.14137127,195.01,194.95,23.902374]
[1735193441221,10.14137127,195.01,194.95,24.67156055]
[1735193441530,10.14137127,195.01,194.95,23.902374]
[1735193441713,10.14137127,195.0,194.95,23.902374]
[1735193442538,10.14137127,195.0,194.95,20.12549]
[1735193442736,10.14137127,195.0,194.96,20.0]
[1735193443356,10.14137127,194.98,194.94,21.5492]
[1735193444038,10.14137127,194.97,194.94,1.5492]
[1735193444650,10.14137127,194.98,194.94,1.5492]
[1735193446038,10.14137127,194.99,194.94,1.5492]
[1735193447831,10.14137127,195.0,194.95,23.902374]
[1735193448142,10.14137127,194.99,194.95,0.12549]
[1735193448327,10.14137127,194.99,194.95,20.12549]
[1735193449034,10.14137127,194.99,194.95,0.12549]
[1735193449230,10.14137127,194.99,194.95,20.12549]
[1735193450142,10.14137127,194.99,194.95,0.12549]
[1735193450339,12.8158,195.08,194.97,0.12549]
[1735193450538,10.14137127,195.02,194.97,0.12549]
[1735193450733,10.14137127,195.03,194.97,0.12549]
[1735193450946,10.14137127,195.01,194.97,0.12549]
[1735193453153,10.14137127,195.02,194.97,0.12549]
[1735193453857,40.56548508,195.1,194.97,0.12549]
[1735193454070,20.9449,195.11,194.99,0.12549]
[1735193454222,10.14137127,195.03,194.99,0.12549]
[1735193454427,10.14137127,195.03,194.99,20.12549]
[1735193455952,10.14137127,195.04,194.99,20.12549]
[1735193456850,10.14137127,195.03,194.99,20.12549]
[1735193458660,10.14137127,195.01,194.97,30.86]
[1735193459358,10.14137127,195.02,194.98,0.12549]
[1735193459696,10.14137127,195.03,194.98,0.12549]
[1735193460660,10.14137127,195.02,194.98,0.12549]
[1735193461357,12.8151,195.09,194.98,0.12549]
[1735193461657,10.14137127,195.01,194.98,0.12549]
[1735193461964,10.14137127,194.99,194.96,20.0]
[1735193462151,10.14137127,194.98,194.94,1.5492]
[1735193462350,10.14137127,194.97,194.94,1.5492]
[1735193462859,10.14137127,194.98,194.94,1.5492]
[1735193463072,10.14137127,194.99,194.94,1.5492]
[1735193463471,10.14137127,194.98,194.94,1.5492]
[1735193463962,10.14137127,194.99,194.94,1.5492]
[1735193465066,10.14137127,194.98,194.94,1.5492]
[1735193465261,10.14137127,194.97,194.94,1.5492]
[1735193465565,10.14137127,194.99,194.94,1.5492]
[1735193466239,10.14137127,194.98,194.94,1.5492]
[1735193466556,10.14137127,194.97,194.94,1.5492]
[1735193467357,10.14137127,194.96,194.89,11.66247127]
[1735193467542,10.14137127,194.96,194.9,0.12549]
[1735193468065,12.8193,195.02,194.9,0.12549]
[1735193468266,12.8193,195.02,194.9,10.26686127]
[1735193468267,10.14137127,194.97,194.9,10.26686127]
[1735193469465,10.14137127,194.96,194.9,0.12549]
[1735193469636,10.14137127,194.95,194.9,0.12549]
[1735193470968,10.14137127,194.96,194.9,0.12549]
[1735193471666,10.14137127,194.96,194.9,20.12549]
[1735193471967,10.14137127,194.96,194.9,0.12549]
[1735193472573,10.14137127,194.96,194.89,11.66247127]
[1735193472760,10.14137127,194.96,194.9,0.12549]
[1735193472968,23.776884,195.03,194.92,10.14137127]
[1735193473273,10.14137127,194.99,194.93,0.12549]
[1735193473461,10.14137127,195.0,194.93,0.12549]
[1735193473657,10.14137127,195.0,194.93,10.26686127]
[1735193473860,10.14137127,195.01,194.93,11.03610355]
[1735193474777,10.14137127,195.0,194.93,10.26686127]
[1735193475862,10.14137127,195.0,194.93,0.12549]
[1735193477180,10.14137127,195.0,194.93,10.26686127]
[1735193479679,10.14137127,195.01,194.93,10.26686127]
[1735193481369,56.78463058,195.09,194.97,20.0]
[1735193481575,10.14137127,195.02,194.98,20.0]
[1735193484777,10.14137127,195.03,194.98,20.0]
[1735193485485,10.14137127,195.02,194.98,20.0]
[1735193485676,10.14137127,195.02,194.97,0.12549]
[1735193486186,10.14137127,195.02,194.98,20.0]
[1735193487372,10.14137127,195.03,194.98,20.0]
[1735193490474,10.14137127,195.03,194.99,20.0]
[1735193490885,10.14137127,195.05,195.0,20.12549]
[1735193491589,10.14137127,195.06,195.01,20.0]
[1735193494190,10.14137127,195.06,195.02,0.12549]
[1735193494399,45.96230185,195.09,195.04,0.12549]
[1735193495070,10.14137127,195.08,195.04,0.12549]
[1735193495269,35.82093058,195.09,195.03,1.5143]
[1735193495270,10.14137127,195.07,195.03,1.5143]
[1735193495974,10.14137127,195.07,195.03,21.5143]
[1735193498101,10.14137127,195.08,195.03,21.5143]
[1735193498494,35.82093058,195.09,195.03,21.5143]
[1735193498688,10.14137127,195.08,195.03,21.5143]
[1735193499306,35.82093058,195.09,195.03,21.5143]
[1735193499505,10.14137127,195.08,195.03,21.5143]
[1735193500997,35.82093058,195.09,195.04,0.12549]
[1735193501302,10.14137127,195.08,195.03,21.5143]
[1735193504614,10.14137127,195.07,195.03,21.5143]
[1735193505106,10.14137127,195.07,195.03,1.5143]
[1735193505311,10.14137127,195.04,194.97,32.4076]
[1735193505495,23.776884,195.08,194.97,1.5476]
[1735193505693,10.14137127,195.01,194.97,1.5476]
[1735193505991,10.14137127,195.0,194.97,1.5476]
[1735193506802,10.14137127,194.99,194.97,1.5476]
[1735193509622,10.14137127,194.99,194.93,0.12549]
[1735193511626,10.14137127,195.0,194.93,0.12549]
[1735193511922,10.14137127,195.0,194.93,10.26686127]
[1735193514934,10.14137127,195.0,194.95,20.0]
[1735193515127,10.14137127,194.99,194.93,0.12549]
[1735193515296,10.14137127,194.97,194.91,7.7339]
[1735193515498,10.14137127,194.96,194.91,7.7339]
[1735193516433,12.8175,195.05,194.91,7.7339]
[1735193516434,10.14137127,194.97,194.91,7.7339]
[1735193518934,10.14137127,194.98,194.92,0.12549]
[1735193520230,10.14137127,195.04,194.98,20.0]
[1735193520829,10.14137127,195.03,194.97,0.12549]
[1735193522335,10.14137127,195.04,194.97,0.12549]
[1735193524524,10.14137127,195.04,194.95,30.86]
[1735193524829,10.14137127,195.04,194.98,20.0]
[1735193525643,10.14137127,195.01,194.94,10.14137127]
[1735193525819,10.14137127,195.01,194.93,24.95825698]
[1735193526019,10.14137127,195.0,194.96,20.0]
[1735193526343,10.14137127,194.99,194.91,17.87527127]
[1735193526736,10.14137127,194.99,194.92,0.12549]
[1735193526911,10.14137127,194.99,194.91,17.87527127]
[1735193526912,10.14137127,194.97,194.91,7.7339]
[1735193527109,10.14137127,194.97,194.91,1.5476]
[1735193527441,10.14137127,194.96,194.91,1.5476]
[1735193528209,10.14137127,194.95,194.87,0.76942537]
[1735193528414,10.14137127,194.92,194.86,1.5604]
[1735193528626,10.14137127,194.89,194.86,1.5604]
[1735193528844,10.14137127,194.89,194.82,16.77377127]
[1735193529027,10.14137127,194.89,194.83,0.12549]
[1735193529915,10.14137127,194.89,194.85,20.0]
[1735193530219,10.14137127,194.89,194.83,0.12549]
[1735193530937,10.14137127,194.91,194.85,0.12549]
[1735193531167,10.14137127,194.92,194.86,0.12549]
[1735193531470,10.14137127,194.93,194.86,0.12549]
[1735193532324,40.56548508,195.0,194.88,30.26686127]
[1735193532550,10.14137127,194.96,194.9,0.12549]
[1735193533028,10.14137127,194.95,194.9,20.0]
[1735193533643,10.14137127,194.96,194.91,20.0]
[1735193533934,10.14137127,194.96,194.9,20.0]
[1735193535433,10.14137127,194.94,194.9,20.0]
[1735193536039,10.14137127,194.92,194.83,15.67093695]
[1735193536258,10.14137127,194.92,194.88,20.0]
[1735193536671,10.14137127,194.95,194.88,20.0]
[1735193538668,10.14137127,194.94,194.88,20.0]
[1735193538869,10.14137127,194.93,194.87,0.12549]
[1735193539471,10.14137127,194.92,194.86,20.0]
[1735193539668,23.776884,194.99,194.86,20.0]
[1735193539669,10.14137127,194.9,194.86,20.0]
[1735193539850,10.14137127,194.9,194.82,16.77377127]
[1735193541037,10.14137127,194.9,194.85,20.0]
[1735193541237,10.14137127,194.88,194.82,6.6324]
[1735193541465,10.14137127,194.88,194.83,0.12549]
[1735193541642,10.14137127,194.89,194.83,0.12549]
[1735193542291,10.14137127,194.88,194.82,6.6324]
[1735193543272,10.14137127,194.87,194.81,1.5604]
[1735193543454,10.14137127,194.86,194.83,20.0]
[1735193543769,10.14137127,194.87,194.83,20.0]
[1735193546679,10.14137127,194.88,194.81,11.70177127]
[1735193548859,10.14137127,194.89,194.82,10.26686127]
[1735193549064,10.14137127,194.9,194.83,10.14137127]